[Event "*** Titled Tuesday 3|2 Blitz"]
[Site "Chess.com"]
[Date "2015.09.01"]
[Round "4"]
[White "tac49"]
[Black "BakaPG"]
[Result "1-0"]
[WhiteElo "2432"]
[BlackElo "2435"]
[TimeControl "180+2"]
[EndTime "11:52:07 PDT"]
[Termination "tac49 won by resignation"]

1. e4 {[%clk 0:02:58.8]} 1... e6 {[%clk 0:02:59.7]} 2. d4 {[%clk 0:02:58.9]}
2... d5 {[%clk 0:03:00.1]} 3. Nc3 {[%clk 0:03:00]} 3... Nf6 {[%clk 0:02:58.4]}
4. e5 {[%clk 0:03:00.4]} 4... Nfd7 {[%clk 0:02:58.7]} 5. f4 {[%clk 0:03:01.3]}
5... c5 {[%clk 0:02:59.9]} 6. Nf3 {[%clk 0:03:03.2]} 6... Nc6 {[%clk 0:03:00.5]}
7. Be3 {[%clk 0:03:04]} 7... cxd4 {[%clk 0:03:02]} 8. Nxd4 {[%clk 0:03:05.9]}
8... Bc5 {[%clk 0:03:02.8]} 9. Qd2 {[%clk 0:03:06.1]} 9... a6 {[%clk 0:03:02.5]}
10. O-O-O {[%clk 0:03:04.7]} 10... O-O {[%clk 0:03:02.4]} 11. Nb3 {[%clk
0:03:00.7]} 11... Bb4 {[%clk 0:03:00.3]} 12. a3 {[%clk 0:03:00.9]} 12... Be7
{[%clk 0:03:00]} 13. Ne2 {[%clk 0:03:02]} 13... b5 {[%clk 0:02:57.7]} 14. Ned4
{[%clk 0:03:00.9]} 14... Nxd4 {[%clk 0:02:57.2]} 15. Nxd4 {[%clk 0:02:59.4]}
15... Qc7 {[%clk 0:02:46.7]} 16. h4 {[%clk 0:02:54.3]} 16... Nc5 {[%clk
0:02:46.7]} 17. Kb1 {[%clk 0:02:45]} 17... Bd7 {[%clk 0:02:45.8]} 18. h5 {[%clk
0:02:44.1]} 18... Rfc8 {[%clk 0:02:45.2]} 19. h6 {[%clk 0:02:43.5]} 19... g6
{[%clk 0:02:44.8]} 20. g4 {[%clk 0:02:44.1]} 20... Ne4 {[%clk 0:02:42.5]} 21.
Qe1 {[%clk 0:02:42.7]} 21... b4 {[%clk 0:02:37.2]} 22. axb4 {[%clk 0:02:37.3]}
22... Rab8 {[%clk 0:02:38]} 23. c3 {[%clk 0:02:32.6]} 23... a5 {[%clk
0:02:34.4]} 24. b5 {[%clk 0:02:33]} 24... a4 {[%clk 0:02:34.8]} 25. Bd3 {[%clk
0:02:08.4]} 25... a3 {[%clk 0:02:32.6]} 26. Bxe4 {[%clk 0:02:09.5]} 26... dxe4
{[%clk 0:02:33.1]} 27. f5 {[%clk 0:01:53.4]} 27... axb2 {[%clk 0:02:27.5]} 28.
fxe6 {[%clk 0:01:53.1]} 28... fxe6 {[%clk 0:02:26.5]} 29. Rf1 {[%clk 0:01:34.5]}
29... Ra8 {[%clk 0:02:23]} 30. Qf2 {[%clk 0:01:21.9]} 30... Rf8 {[%clk 0:02:22]}
31. Qxb2 {[%clk 0:01:22.3]} 31... Qxe5 {[%clk 0:02:13.5]} 32. Rxf8+ {[%clk
0:01:15.1]} 32... Bxf8 {[%clk 0:02:12.8]} 33. c4 {[%clk 0:00:29.2]} 33... Ba3
{[%clk 0:01:40.4]} 34. Qb3 {[%clk 0:00:24.7]} 34... Bc5 {[%clk 0:01:35.7]} 35.
Qb2 {[%clk 0:00:21.5]} 35... Ba3 {[%clk 0:01:16.7]} 36. Qc3 {[%clk 0:00:21.1]}
36... Be8 {[%clk 0:01:10.5]} 37. Ne2 {[%clk 0:00:19.9]} 37... Qc7 {[%clk
0:00:59.5]} 38. Qf6 {[%clk 0:00:20.2]} 38... Qe7 {[%clk 0:00:39.5]} 39. Qxe7
{[%clk 0:00:19.7]} 39... Bxe7 {[%clk 0:00:39.1]} 40. Nf4 {[%clk 0:00:21.6]}
40... Rc8 {[%clk 0:00:35.7]} 41. Rc1 {[%clk 0:00:21.3]} 41... Ba3 {[%clk
0:00:34.1]} 42. Rc2 {[%clk 0:00:20.3]} 42... Bd7 {[%clk 0:00:30.2]} 43. Ne2
{[%clk 0:00:19.3]} 43... e5 {[%clk 0:00:29.7]} 44. Ng3 {[%clk 0:00:19.1]} 44...
Bxg4 {[%clk 0:00:29.9]} 45. c5 {[%clk 0:00:18.1]} 45... Bd1 {[%clk 0:00:28.2]}
46. Rc3 {[%clk 0:00:17.4]} 46... Bb4 {[%clk 0:00:24.4]} 47. Rc4 {[%clk
0:00:18.4]} 47... Ba5 {[%clk 0:00:24.2]} 48. Kb2 {[%clk 0:00:19.2]} 48... Kf7
{[%clk 0:00:18.9]} 49. c6 {[%clk 0:00:19.1]} 49... Ke6 {[%clk 0:00:18.6]} 50. b6
{[%clk 0:00:18.6]} 50... Kd5 {[%clk 0:00:16.1]} 51. b7 {[%clk 0:00:19.1]} 51...
Rb8 {[%clk 0:00:16.7]} 52. Rc5+ {[%clk 0:00:20.2]} 52... Kd6 {[%clk 0:00:16.7]}
53. Rxa5 {[%clk 0:00:20.4]} 53... Kxc6 {[%clk 0:00:17.1]} 54. Ra7 {[%clk
0:00:20.6]} 54... Bf3 {[%clk 0:00:15.5]} 55. Kc3 {[%clk 0:00:19.9]} 55... Rxb7
{[%clk 0:00:16]} 56. Rxb7 {[%clk 0:00:21.8]} 56... Kxb7 {[%clk 0:00:17.2]} 57.
Kc4 {[%clk 0:00:23.7]} 57... Kc6 {[%clk 0:00:18.4]} 58. Bg5 {[%clk 0:00:24.8]}
58... Kd6 {[%clk 0:00:18.8]} 59. Kc3 {[%clk 0:00:25.2]} 59... Kd5 {[%clk
0:00:18.5]} 60. Nf1 {[%clk 0:00:25.8]} 60... Be2 {[%clk 0:00:16.1]} 61. Ne3+
{[%clk 0:00:26]} 61... Ke6 {[%clk 0:00:17]} 62. Kb4 {[%clk 0:00:27.9]} 62... Bd3
{[%clk 0:00:15.9]} 63. Kc5 {[%clk 0:00:29.8]} 63... Be2 {[%clk 0:00:16.7]} 64.
Kc6 {[%clk 0:00:30.7]} 64... Bd3 {[%clk 0:00:17.5]} 65. Kc7 {[%clk 0:00:31.7]}
65... Bb5 {[%clk 0:00:18.1]} 66. Kd8 {[%clk 0:00:31.7]} 66... Ba4 {[%clk
0:00:18.8]} 67. Kc7 {[%clk 0:00:32.7]} 67... Bb5 {[%clk 0:00:19.5]} 68. Kb6
{[%clk 0:00:34.6]} 68... Ba4 {[%clk 0:00:20]} 69. Kc5 {[%clk 0:00:36.5]} 69...
Bb3 {[%clk 0:00:19]} 70. Kb4 {[%clk 0:00:38.4]} 70... Ba2 {[%clk 0:00:18.6]} 71.
Kc3 {[%clk 0:00:40.3]} 71... Bb1 {[%clk 0:00:18.2]} 72. Kd2 {[%clk 0:00:42.2]}
72... Bd3 {[%clk 0:00:18.9]} 73. Ke1 {[%clk 0:00:44.1]} 73... Bb5 {[%clk
0:00:18.9]} 74. Kf2 {[%clk 0:00:46]} 74... Ba6 {[%clk 0:00:19.9]} 75. Kg3 {[%clk
0:00:47.9]} 75... Bb5 {[%clk 0:00:20.8]} 76. Kh4 {[%clk 0:00:49.8]} 76... Ba6
{[%clk 0:00:21.6]} 77. Bd8 {[%clk 0:00:50.9]} 77... Bb5 {[%clk 0:00:21.1]} 78.
Kg5 {[%clk 0:00:51.6]} 78... Ba6 {[%clk 0:00:21.9]} 79. Bc7 {[%clk 0:00:52.6]}
79... Bb5 {[%clk 0:00:20.2]} 80. Ng4 {[%clk 0:00:52.6]} 80... Kd5 {[%clk
0:00:20.6]} 81. Nf6+ {[%clk 0:00:50.3]} 81... Kd4 {[%clk 0:00:18.2]} 82. Bb6+
{[%clk 0:00:50.7]} 82... Kd3 {[%clk 0:00:18.1]} 83. Nxh7 {[%clk 0:00:51]} 83...
e3 {[%clk 0:00:18.7]} 84. Nf6 {[%clk 0:00:51.5]} 84... e2 {[%clk 0:00:18.8]} 85.
Ba5 {[%clk 0:00:52.7]} 1-0

[Event "*** Titled Tuesday 3|2 Blitz"]
[Site "Chess.com"]
[Date "2015.09.01"]
[Round "5"]
[White "SCIM"]
[Black "Thomaslegend"]
[Result "1-0"]
[WhiteElo "2149"]
[BlackElo "2132"]
[TimeControl "180+2"]
[EndTime "11:57:33 PDT"]
[Termination "SCIM won by checkmate"]

1. d4 {[%clk 0:02:45.9]} 1... Nf6 {[%clk 0:03:00.7]} 2. c4 {[%clk 0:02:46.1]}
2... g6 {[%clk 0:03:02]} 3. Nc3 {[%clk 0:02:46.4]} 3... d5 {[%clk 0:03:03.1]} 4.
Bf4 {[%clk 0:02:46.5]} 4... Bg7 {[%clk 0:03:01]} 5. e3 {[%clk 0:02:46.6]} 5...
Be6 {[%clk 0:02:57.1]} 6. Nf3 {[%clk 0:02:35.8]} 6... dxc4 {[%clk 0:02:35.3]} 7.
e4 {[%clk 0:02:35.4]} 7... c6 {[%clk 0:02:29.8]} 8. Ng5 {[%clk 0:02:35.3]} 8...
Bc8 {[%clk 0:02:27]} 9. Bxc4 {[%clk 0:02:33.1]} 9... O-O {[%clk 0:02:26.7]} 10.
h4 {[%clk 0:02:29.4]} 10... Nh5 {[%clk 0:02:13.8]} 11. Be3 {[%clk 0:02:26.4]}
11... Bg4 {[%clk 0:02:05.7]} 12. Qxg4 {[%clk 0:02:19.9]} 12... e5 {[%clk
0:01:44.4]} 13. dxe5 {[%clk 0:02:11.6]} 13... Bxe5 {[%clk 0:01:42.5]} 14. Rd1
{[%clk 0:02:11.5]} 14... Qa5 {[%clk 0:01:43]} 15. O-O {[%clk 0:02:07.9]} 15...
Na6 {[%clk 0:01:42.1]} 16. Rd7 {[%clk 0:01:57.9]} 16... Nf6 {[%clk 0:01:36.3]}
17. Nxf7 {[%clk 0:01:43.2]} 17... Nxg4 {[%clk 0:01:14]} 18. Ng5+ {[%clk
0:01:43.3]} 18... Rf7 {[%clk 0:01:07]} 19. Bxf7+ {[%clk 0:01:41.6]} 19... Kf8
{[%clk 0:01:02.9]} 20. Ne6# {[%clk 0:01:39.6]} 1-0

[Event "*** Titled Tuesday 3|2 Blitz"]
[Site "Chess.com"]
[Date "2015.09.01"]
[Round "5"]
[White "LADIESGET2KNOWME"]
[Black "Moltini"]
[Result "1-0"]
[WhiteElo "2246"]
[BlackElo "2133"]
[TimeControl "180+2"]
[EndTime "11:57:39 PDT"]
[Termination "LADIESGET2KNOWME won by resignation"]

1. d4 {[%clk 0:03:01.9]} 1... Nf6 {[%clk 0:02:50.5]} 2. c4 {[%clk 0:03:02.4]}
2... g6 {[%clk 0:02:51.6]} 3. Nc3 {[%clk 0:03:03.7]} 3... Bg7 {[%clk 0:02:52.5]}
4. e4 {[%clk 0:03:05.4]} 4... d6 {[%clk 0:02:54.1]} 5. Nf3 {[%clk 0:03:06.9]}
5... O-O {[%clk 0:02:55.4]} 6. Be2 {[%clk 0:03:08.6]} 6... e5 {[%clk 0:02:56.7]}
7. O-O {[%clk 0:03:09.9]} 7... Nc6 {[%clk 0:02:58]} 8. Be3 {[%clk 0:03:10.9]}
8... Ng4 {[%clk 0:02:53]} 9. Bg5 {[%clk 0:03:12]} 9... f6 {[%clk 0:02:54.2]} 10.
Bh4 {[%clk 0:03:13.7]} 10... g5 {[%clk 0:02:55.2]} 11. Bg3 {[%clk 0:03:15.1]}
11... Nh6 {[%clk 0:02:53.9]} 12. c5 {[%clk 0:03:16.4]} 12... Bg4 {[%clk
0:02:47.1]} 13. cxd6 {[%clk 0:03:16]} 13... cxd6 {[%clk 0:02:46.6]} 14. dxe5
{[%clk 0:03:16.4]} 14... dxe5 {[%clk 0:02:46.6]} 15. Qb3+ {[%clk 0:03:11.9]}
15... Kh8 {[%clk 0:02:45.2]} 16. Qxb7 {[%clk 0:03:10.7]} 16... Bxf3 {[%clk
0:02:45.9]} 17. Qxc6 {[%clk 0:03:10.8]} 17... Bxe2 {[%clk 0:02:42.6]} 18. Nxe2
{[%clk 0:03:11.9]} 18... Rc8 {[%clk 0:02:44.1]} 19. Qa4 {[%clk 0:03:11.8]} 19...
Qd2 {[%clk 0:02:43.4]} 20. Rfe1 {[%clk 0:02:53.3]} 20... Qxb2 {[%clk 0:02:42.3]}
21. Qxa7 {[%clk 0:02:54.2]} 21... Rc2 {[%clk 0:02:42.1]} 22. Kf1 {[%clk
0:02:42.6]} 22... Rd2 {[%clk 0:02:39.2]} 23. a4 {[%clk 0:02:27.8]} 23... Qc2
{[%clk 0:02:39.9]} 24. a5 {[%clk 0:02:23]} 24... Qxe4 {[%clk 0:02:39.9]} 25. a6
{[%clk 0:02:18.9]} 25... Nf5 {[%clk 0:02:40.9]} 26. Qb7 {[%clk 0:02:06.5]} 26...
Qd3 {[%clk 0:02:40.9]} 27. a7 {[%clk 0:02:00.5]} 27... Nd4 {[%clk 0:02:41.8]}
28. a8=Q {[%clk 0:01:47]} 28... Nxe2 {[%clk 0:02:40.8]} 29. Qaa6 {[%clk
0:01:27.9]} 29... Nxg3+ {[%clk 0:02:35.7]} 30. Kg1 {[%clk 0:01:29.2]} 30... Qf5
{[%clk 0:02:34.5]} 31. fxg3 {[%clk 0:01:17.7]} 31... Qf2+ {[%clk 0:02:28.9]} 32.
Kh1 {[%clk 0:01:18.3]} 32... g4 {[%clk 0:02:30.2]} 33. Qaa7 {[%clk 0:01:13.9]}
33... Rg8 {[%clk 0:02:30.3]} 34. Qxf2 {[%clk 0:01:13.6]} 34... Rxf2 {[%clk
0:02:30.1]} 1-0

[Event "*** Titled Tuesday 3|2 Blitz"]
[Site "Chess.com"]
[Date "2015.09.01"]
[Round "5"]
[White "rhungaski"]
[Black "tac49"]
[Result "1-0"]
[WhiteElo "2474"]
[BlackElo "2425"]
[TimeControl "180+2"]
[EndTime "11:57:45 PDT"]
[Termination "rhungaski won by resignation"]

1. Nf3 {[%clk 0:03:01.9]} 1... d5 {[%clk 0:02:58.2]} 2. c4 {[%clk 0:03:00.1]}
2... c6 {[%clk 0:02:54.5]} 3. d4 {[%clk 0:02:59.4]} 3... Nf6 {[%clk 0:02:54.5]}
4. Qb3 {[%clk 0:02:59.4]} 4... dxc4 {[%clk 0:02:54.4]} 5. Qxc4 {[%clk
0:03:01.3]} 5... Bg4 {[%clk 0:02:55.3]} 6. Nbd2 {[%clk 0:03:00.6]} 6... Nbd7
{[%clk 0:02:53.9]} 7. g3 {[%clk 0:02:59.7]} 7... e6 {[%clk 0:02:54.5]} 8. Bg2
{[%clk 0:03:00.4]} 8... Be7 {[%clk 0:02:55.6]} 9. O-O {[%clk 0:03:01.6]} 9...
O-O {[%clk 0:02:56.7]} 10. Nb3 {[%clk 0:02:51.7]} 10... a5 {[%clk 0:02:47.6]}
11. Bg5 {[%clk 0:02:42.9]} 11... h6 {[%clk 0:02:38.9]} 12. Bxf6 {[%clk
0:02:43.2]} 12... Nxf6 {[%clk 0:02:39.8]} 13. Rfd1 {[%clk 0:02:30.6]} 13... Qd5
{[%clk 0:02:29.2]} 14. Nbd2 {[%clk 0:02:25.9]} 14... Qxc4 {[%clk 0:02:14.9]} 15.
Nxc4 {[%clk 0:02:27.8]} 15... Bxf3 {[%clk 0:02:10.3]} 16. Bxf3 {[%clk
0:02:27.9]} 16... Rfd8 {[%clk 0:02:09.6]} 17. a3 {[%clk 0:02:23.1]} 17... Nd5
{[%clk 0:02:08.7]} 18. e3 {[%clk 0:02:22]} 18... b5 {[%clk 0:01:55.5]} 19. Ne5
{[%clk 0:02:20.8]} 19... Rac8 {[%clk 0:01:52.8]} 20. Rac1 {[%clk 0:02:20.1]}
20... c5 {[%clk 0:01:52.4]} 21. dxc5 {[%clk 0:02:20.4]} 21... Bxc5 {[%clk
0:01:46.6]} 22. e4 {[%clk 0:02:03.7]} 22... Bd6 {[%clk 0:01:27.9]} 23. Nc6
{[%clk 0:02:02.4]} 1-0

[Event "*** Titled Tuesday 3|2 Blitz"]
[Site "Chess.com"]
[Date "2015.09.01"]
[Round "5"]
[White "jup1978"]
[Black "Schemato"]
[Result "1-0"]
[WhiteElo "2160"]
[BlackElo "2142"]
[TimeControl "180+2"]
[EndTime "11:58:51 PDT"]
[Termination "jup1978 won by checkmate"]

1. e4 {[%clk 0:03:01.9]} 1... e6 {[%clk 0:02:57.6]} 2. d4 {[%clk 0:03:02.1]}
2... d5 {[%clk 0:02:57.6]} 3. Nd2 {[%clk 0:03:03.7]} 3... Be7 {[%clk 0:02:57]}
4. Bd3 {[%clk 0:03:03.5]} 4... c5 {[%clk 0:02:55.2]} 5. exd5 {[%clk 0:03:03.1]}
5... Qxd5 {[%clk 0:02:53.8]} 6. Ngf3 {[%clk 0:02:57]} 6... cxd4 {[%clk
0:02:54.2]} 7. O-O {[%clk 0:02:56.2]} 7... Nf6 {[%clk 0:02:53.6]} 8. Re1 {[%clk
0:02:52]} 8... Nc6 {[%clk 0:02:52.9]} 9. Bc4 {[%clk 0:02:52.8]} 9... Qh5 {[%clk
0:02:50.7]} 10. Nb3 {[%clk 0:02:49.4]} 10... O-O {[%clk 0:02:49.3]} 11. Nbxd4
{[%clk 0:02:43.9]} 11... Rd8 {[%clk 0:02:45.1]} 12. Nxc6 {[%clk 0:02:39.4]}
12... Rxd1 {[%clk 0:02:28.6]} 13. Nxe7+ {[%clk 0:02:37]} 13... Kf8 {[%clk
0:02:29.2]} 14. Rxd1 {[%clk 0:02:38.2]} 14... Kxe7 {[%clk 0:02:28.1]} 15. b3
{[%clk 0:02:39.6]} 15... Bd7 {[%clk 0:02:20.5]} 16. Ba3+ {[%clk 0:02:34.4]}
16... Ke8 {[%clk 0:02:20.9]} 17. Rd4 {[%clk 0:02:28.4]} 17... Qa5 {[%clk
0:02:08.6]} 18. Bd6 {[%clk 0:02:21.2]} 18... Bc6 {[%clk 0:02:00.2]} 19. Ne5
{[%clk 0:02:18.5]} 19... Rd8 {[%clk 0:01:58.5]} 20. b4 {[%clk 0:01:52.3]} 20...
Qb6 {[%clk 0:01:40.7]} 21. Rad1 {[%clk 0:01:51.4]} 21... Bd5 {[%clk 0:01:34]}
22. Bc5 {[%clk 0:01:50.1]} 22... Qc7 {[%clk 0:01:31.8]} 23. Bb5+ {[%clk
0:01:50.7]} 23... Nd7 {[%clk 0:01:19.4]} 24. Nxd7 {[%clk 0:01:47.2]} 24... Rxd7
{[%clk 0:01:06.7]} 25. Bxd7+ {[%clk 0:01:43.3]} 25... Qxd7 {[%clk 0:01:04.7]}
26. c4 {[%clk 0:01:44]} 26... b6 {[%clk 0:01:04.2]} 27. cxd5 {[%clk 0:01:32.1]}
27... bxc5 {[%clk 0:01:03.9]} 28. dxe6 {[%clk 0:01:20.2]} 28... Qxe6 {[%clk
0:01:04.5]} 29. bxc5 {[%clk 0:01:15.5]} 29... Qxa2 {[%clk 0:01:01.9]} 30. Re1+
{[%clk 0:01:14.1]} 30... Kf8 {[%clk 0:00:59.6]} 31. Rd8# {[%clk 0:01:14.5]} 1-0

[Event "*** Titled Tuesday 3|2 Blitz"]
[Site "Chess.com"]
[Date "2015.09.01"]
[Round "5"]
[White "Tobi-Wan-Kenobi"]
[Black "lukas_111111"]
[Result "0-1"]
[WhiteElo "2368"]
[BlackElo "2226"]
[TimeControl "180+2"]
[EndTime "11:59:29 PDT"]
[Termination "lukas_111111 won by resignation"]

1. e4 {[%clk 0:01:41.9]} 1... c5 {[%clk 0:02:59.4]} 2. Nf3 {[%clk 0:01:42.2]}
2... d6 {[%clk 0:02:59.7]} 3. d4 {[%clk 0:01:42.2]} 3... cxd4 {[%clk 0:03:01.1]}
4. Nxd4 {[%clk 0:01:44.1]} 4... Nf6 {[%clk 0:03:02.4]} 5. Nc3 {[%clk 0:01:45.7]}
5... a6 {[%clk 0:03:03.6]} 6. Be3 {[%clk 0:01:46.2]} 6... e5 {[%clk 0:03:04.3]}
7. Nb3 {[%clk 0:01:45.5]} 7... Be7 {[%clk 0:03:04.1]} 8. h3 {[%clk 0:01:45.5]}
8... Be6 {[%clk 0:03:03.4]} 9. f4 {[%clk 0:01:44.1]} 9... exf4 {[%clk
0:03:02.8]} 10. Bxf4 {[%clk 0:01:46]} 10... Nc6 {[%clk 0:03:03.8]} 11. Qe2
{[%clk 0:01:45.2]} 11... O-O {[%clk 0:02:56.4]} 12. O-O-O {[%clk 0:01:45.3]}
12... Nd7 {[%clk 0:02:45]} 13. Kb1 {[%clk 0:01:43.5]} 13... Nde5 {[%clk
0:02:44.4]} 14. g4 {[%clk 0:01:42.7]} 14... b5 {[%clk 0:02:36.5]} 15. Qg2 {[%clk
0:01:40.7]} 15... b4 {[%clk 0:02:30.3]} 16. Nd5 {[%clk 0:01:40.6]} 16... a5
{[%clk 0:02:29.1]} 17. g5 {[%clk 0:01:28]} 17... a4 {[%clk 0:02:27.5]} 18. Nd4
{[%clk 0:01:27.4]} 18... Nxd4 {[%clk 0:02:26.2]} 19. Rxd4 {[%clk 0:01:29.3]}
19... Kh8 {[%clk 0:01:53.8]} 20. Be2 {[%clk 0:01:22.8]} 20... b3 {[%clk
0:01:51.4]} 21. cxb3 {[%clk 0:01:21]} 21... axb3 {[%clk 0:01:51.3]} 22. a3
{[%clk 0:01:22.9]} 22... Ng6 {[%clk 0:01:33.6]} 23. Be3 {[%clk 0:01:16.2]} 23...
Bxd5 {[%clk 0:01:29.3]} 24. exd5 {[%clk 0:01:13.9]} 24... Qc8 {[%clk 0:01:23.4]}
25. Rc1 {[%clk 0:01:09.8]} 25... Qf5+ {[%clk 0:01:23.6]} 26. Bd3 {[%clk
0:01:10]} 26... Qe5 {[%clk 0:01:16.8]} 27. Re1 {[%clk 0:00:49.1]} 27... Bd8
{[%clk 0:01:12.7]} 28. Qe4 {[%clk 0:00:39.8]} 28... Bb6 {[%clk 0:01:07.3]} 29.
Qxe5 {[%clk 0:00:38]} 29... Nxe5 {[%clk 0:01:07.5]} 0-1

[Event "*** Titled Tuesday 3|2 Blitz"]
[Site "Chess.com"]
[Date "2015.09.01"]
[Round "5"]
[White "Kempsy"]
[Black "bugsbunny444"]
[Result "1-0"]
[WhiteElo "2493"]
[BlackElo "2294"]
[TimeControl "180+2"]
[EndTime "11:59:31 PDT"]
[Termination "Kempsy won by resignation"]

1. d4 {[%clk 0:02:52.7]} 1... e6 {[%clk 0:03:00.9]} 2. e4 {[%clk 0:02:53.1]}
2... d5 {[%clk 0:03:02.1]} 3. Nd2 {[%clk 0:02:54.4]} 3... Nf6 {[%clk 0:03:03.3]}
4. e5 {[%clk 0:02:55.2]} 4... Nfd7 {[%clk 0:03:05]} 5. f4 {[%clk 0:02:56.7]}
5... c5 {[%clk 0:03:06.5]} 6. c3 {[%clk 0:02:58.3]} 6... Nc6 {[%clk 0:03:08.1]}
7. Ndf3 {[%clk 0:02:59.4]} 7... cxd4 {[%clk 0:03:09.2]} 8. cxd4 {[%clk
0:03:00.5]} 8... a5 {[%clk 0:03:11.1]} 9. Bd3 {[%clk 0:03:01]} 9... a4 {[%clk
0:03:11.1]} 10. Ne2 {[%clk 0:03:02.3]} 10... Nb6 {[%clk 0:03:11.7]} 11. O-O
{[%clk 0:02:41.5]} 11... Be7 {[%clk 0:03:13]} 12. Be3 {[%clk 0:02:36.1]} 12...
Nb4 {[%clk 0:02:44.1]} 13. Bb1 {[%clk 0:02:35.8]} 13... Nc4 {[%clk 0:02:45]} 14.
Bc1 {[%clk 0:02:35.1]} 14... a3 {[%clk 0:02:30.4]} 15. b3 {[%clk 0:02:19.2]}
15... Na5 {[%clk 0:01:49.7]} 16. Bd2 {[%clk 0:02:00.9]} 16... Nac6 {[%clk
0:01:42.5]} 17. Bc3 {[%clk 0:01:57.9]} 17... Qb6 {[%clk 0:01:27.4]} 18. Kh1
{[%clk 0:01:56.8]} 18... Bd7 {[%clk 0:01:26.2]} 19. Qd2 {[%clk 0:01:55]} 19...
g6 {[%clk 0:01:12.2]} 20. Nc1 {[%clk 0:01:53.1]} 20... O-O {[%clk 0:01:06.5]}
21. Ne2 {[%clk 0:01:46.4]} 21... Rac8 {[%clk 0:00:56.8]} 22. g4 {[%clk
0:01:46.6]} 22... f6 {[%clk 0:00:48.3]} 23. f5 {[%clk 0:01:39.3]} 23... exf5
{[%clk 0:00:44.1]} 24. gxf5 {[%clk 0:01:37.8]} 24... Bxf5 {[%clk 0:00:16.9]} 25.
Bxf5 {[%clk 0:01:37.9]} 25... gxf5 {[%clk 0:00:18.8]} 26. Qh6 {[%clk 0:01:30.5]}
26... Kh8 {[%clk 0:00:17.6]} 27. Rg1 {[%clk 0:01:26.8]} 27... Rf7 {[%clk
0:00:14.1]} 28. Nf4 {[%clk 0:01:27.1]} 28... Rg8 {[%clk 0:00:04.5]} 29. Rxg8+
{[%clk 0:01:25.2]} 29... Kxg8 {[%clk 0:00:06.4]} 30. Rg1+ {[%clk 0:01:26.3]} 1-0

[Event "*** Titled Tuesday 3|2 Blitz"]
[Site "Chess.com"]
[Date "2015.09.01"]
[Round "5"]
[White "Badouuu"]
[Black "BakaPG"]
[Result "0-1"]
[WhiteElo "1845"]
[BlackElo "2436"]
[TimeControl "180+2"]
[EndTime "11:59:32 PDT"]
[Termination "BakaPG won by resignation"]

1. e4 {[%clk 0:02:57.7]} 1... e6 {[%clk 0:02:59.5]} 2. d4 {[%clk 0:02:56.5]}
2... d5 {[%clk 0:02:59.7]} 3. Nd2 {[%clk 0:02:57.6]} 3... Be7 {[%clk 0:02:57.9]}
4. Bd3 {[%clk 0:02:57.1]} 4... Nf6 {[%clk 0:02:55.9]} 5. e5 {[%clk 0:02:57.2]}
5... Nfd7 {[%clk 0:02:56.3]} 6. c3 {[%clk 0:02:58.6]} 6... c5 {[%clk 0:02:56.7]}
7. Ne2 {[%clk 0:02:59.2]} 7... Nc6 {[%clk 0:02:57]} 8. O-O {[%clk 0:02:58.1]}
8... g5 {[%clk 0:02:49.5]} 9. f4 {[%clk 0:02:45]} 9... gxf4 {[%clk 0:02:47.8]}
10. Rxf4 {[%clk 0:02:40.9]} 10... cxd4 {[%clk 0:02:47.8]} 11. cxd4 {[%clk
0:02:40.6]} 11... Qb6 {[%clk 0:02:48.2]} 12. Nf3 {[%clk 0:02:38.7]} 12... Ndxe5
{[%clk 0:02:46.1]} 13. Bc2 {[%clk 0:02:07.7]} 13... Ng6 {[%clk 0:02:42.4]} 14.
Rg4 {[%clk 0:02:01.2]} 14... e5 {[%clk 0:02:43.1]} 15. Rg3 {[%clk 0:01:50]}
15... e4 {[%clk 0:02:42.2]} 16. Ng5 {[%clk 0:01:45.4]} 16... h5 {[%clk
0:02:32.7]} 17. Nf4 {[%clk 0:01:33.6]} 17... Nxf4 {[%clk 0:02:26.5]} 18. Bxf4
{[%clk 0:01:33]} 18... Qxd4+ {[%clk 0:02:21.2]} 19. Qxd4 {[%clk 0:01:31.4]}
19... Nxd4 {[%clk 0:02:21.1]} 20. Ba4+ {[%clk 0:01:27.9]} 20... Bd7 {[%clk
0:02:18]} 21. Bd1 {[%clk 0:01:22.1]} 21... h4 {[%clk 0:02:13.3]} 22. Rc3 {[%clk
0:01:14.8]} 22... Rg8 {[%clk 0:02:12.2]} 23. Nxf7 {[%clk 0:00:59.7]} 23... Kxf7
{[%clk 0:02:08.7]} 24. Rc7 {[%clk 0:00:58.3]} 24... Ke6 {[%clk 0:01:59.3]} 25.
h3 {[%clk 0:00:47.1]} 25... Bd6 {[%clk 0:02:00]} 26. Bxd6 {[%clk 0:00:29.1]}
26... Kxd6 {[%clk 0:01:59.7]} 27. Rxb7 {[%clk 0:00:29.5]} 27... Bxh3 {[%clk
0:01:57.1]} 28. Rc1 {[%clk 0:00:25.7]} 28... Rxg2+ {[%clk 0:01:54.4]} 29. Kh1
{[%clk 0:00:26.9]} 29... Rag8 {[%clk 0:01:52.6]} 30. Ba4 {[%clk 0:00:23.1]}
30... Rd2 {[%clk 0:01:49.2]} 31. Rg1 {[%clk 0:00:11.8]} 31... Rxg1+ {[%clk
0:01:46.8]} 32. Kxg1 {[%clk 0:00:12.7]} 32... Nf3+ {[%clk 0:01:47.3]} 0-1